[Event "CZE-ch U16 Open 2023"]
[Site "Teplice"]
[Date "2023.03.11"]
[Round "1.10"]
[White "Sigut, Ondrej"]
[Black "Lang, Simon"]
[Result "0-1"]
[ECO "B51"]
[WhiteElo "1804"]
[BlackElo "1974"]
[Annotator "TA"]
[PlyCount "84"]
[EventDate "2023.03.09"]
[EventType "swiss"]
[EventCountry "CZE"]
[SourceTitle "playchess.com"]
[Source "ChessBase"]
[SourceQuality "1"]
[TimeControl "40/5400+30:1800+30"]

{[%evp 14,84,19,5,8,0,29,0,21,0,44,-6,12,8,9,-10,-23,-32,-3,-64,-65,-64,-72,-64,-37,-67,-64,-122,-125,-133,-125,-281,-148,-187,-135,-187,-82,-76,-83,-161,-159,-187,-165,-150,-143,-195,-181,-222,-223,-244,-255,-271,-300,-304,-277,-443,118,107,354,361,381,377,375,373,313,0,160,150,150,159,164,-29977,-29978]} 1. e4 {[%emt 0:00:02]} c5 {[%emt 0:00:51]} 2. Nf3 {[%emt 0:00:22]} d6 {[%emt 0:00:54]} 3. Bb5+ {[%emt 0:00:58]} Nd7 {[%emt 0:01:33]} 4. d4 {[%emt 0:01:08]} Ngf6 {[%emt 0:01:18]} 5. Nc3 {[%emt 0:04:12]} cxd4 {[%emt 0:02:05]} 6. Qxd4 {[%emt 0:00:39]} e5 {[%emt 0:01:26]} 7. Qd3 {[%emt 0:00:46]} h6 {[%emt 0:01:20]} 8. O-O {[%emt 0:01:02]} a6 {[%emt 0:02:31] B51: Sicilian: Moscow Variation (3 Bb5+) without 3...Bd7.} 9. Bxd7+ {[%emt 0:01:11]} Bxd7 {[%emt 0:01:52]} 10. Be3 {[%emt 0:02:44]} Be7 {[%emt 0:02:40] The position is equal.} 11. a4 {[%emt 0:02:34] [#]} b6 $146 {[%emt 0:26:40]} ({Predecessor:} 11... O-O 12. Nd2 Bc6 13. Nc4 Nxe4 14. Nxe4 Bxe4 15. Qxe4 d5 16. Qxe5 dxc4 17. Rad1 Bf6 18. Qf5 {1-0 Pacher,M (2334)-Manik,M (2415) SVK-ch Blitz 2022 (7)}) 12. Rad1 {[%emt 0:06:49]} (12. Nd2 $14) 12... Be6 {[%emt 0:06:35]} 13. Rfe1 {[%emt 0:05:39]} Qc7 {[%emt 0:07:26]} (13... O-O {keeps more tension.} 14. Nh4 Nxe4 15. Ng6 fxg6 16. Qxe4 Qe8) 14. Nd2 {[%emt 0:08:37]} O-O {[%emt 0:04:41]} 15. f3 {[%emt 0:07:12]} Rfd8 {[%emt 0:05:43]} 16. Qe2 {[%emt 0:15:53]} (16. Nd5 $11 Bxd5 17. exd5) 16... d5 $15 {[%emt 0:08:09]} 17. exd5 {[%emt 0:03:42]} Nxd5 {[%emt 0:00:57]} 18. Nxd5 {[%emt 0:01:54]} Bxd5 {[%emt 0:01:34]} 19. c4 {[%emt 0:04:23]} Bc6 {[%emt 0:02:08]} 20. Qf2 {[%emt 0:02:35]} (20. b3 $15) 20... Rab8 $17 {[%emt 0:01:34]} (20... Bxa4 $6 21. Ra1 (21. Bxb6 Qc6 $11) 21... Qc6 22. b3 (22. Bxb6 $2 Rxd2 {[%mdl 64] Deflection} 23. Qxd2 Qxb6+ 24. Kh1 Qb3 $19) 22... Rxd2 23. Qxd2 (23. Bxd2 Bxb3 24. Be3 Bxc4 $15) 23... Bxb3 24. Rab1 Qxc4 25. Qb2 $11 (25. Bxb6 $2 Bb4 $17 {[%mdl 64] Skewer})) 21. b3 {[%emt 0:01:45]} Bb4 {[%emt 0:02:59] Black is more active.} 22. f4 $2 {[%emt 0:08:02]} (22. Qe2 $17 {was worth a try.}) 22... e4 {[%emt 0:10:27]} (22... Rd3 $1 $19 {And now ...exf4 would win.} 23. Re2 exf4 24. Qxf4 Qxf4 25. Bxf4 Rbd8) 23. f5 {[%emt 0:03:18]} f6 {[%emt 0:01:53]} ({Better is} 23... Rd3 $19 {White must now prevent ...Qd7.} 24. c5 bxc5) 24. Bf4 {[%emt 0:05:02]} (24. Rb1 $17) 24... Bd6 {[%emt 0:01:36]} (24... Qc8 $19 {has better winning chances. Hoping for ...Rb7.} 25. Bxb8 Bc5) 25. Bxd6 {[%emt 0:00:32]} Qxd6 {[%emt 0:01:12]} 26. Re3 {[%emt 0:07:40]} (26. Re2 $17) 26... Rb7 $19 {[%emt 0:01:24] aiming for ...Rbd7.} 27. Re2 {[%emt 0:01:40]} Qb4 {[%emt 0:00:45] Strongly threatening ...Rbd7.} 28. Rde1 {[%emt 0:01:07] [#]} Re7 $1 {[%emt 0:00:49][%cal Oe4e3] ...e3! would be deadly.} 29. Nf1 {[%emt 0:01:37]} (29. Qf4 $17 {was necessary.}) 29... Rd3 {[%emt 0:00:41]} 30. Re3 {[%emt 0:01:05]} Rxb3 {[%emt 0:00:58]} 31. Rxb3 {[%emt 0:00:40]} Qxb3 {[%emt 0:00:04]} 32. c5 {[%emt 0:00:54]} b5 {[%emt 0:00:44]} (32... Bxa4 33. cxb6 Rb7 34. Rxe4 $17) 33. axb5 {[%emt 0:00:17]} axb5 {[%emt 0:00:08]} (33... Qxb5 $2 34. Rc1 $19) (33... Bxb5 $2 34. Qe3 Qd5 35. g4 $19) 34. Qd4 {[%emt 0:00:28]} (34. Qf4 {might work better.} Re5 35. Qe3) 34... Qc4 $2 {[%emt 0:01:04]} ({Black should play} 34... Rd7 $19 35. Qa1 Qd5) 35. Qd6 $16 {[%emt 0:00:42][%csl LRc6,LRe7]} Rd7 {[%emt 0:00:46]} (35... Re5 $16) 36. Qxc6 $18 {[%emt 0:00:16]} Qd4+ {[%emt 0:00:08]} 37. Kh1 {[%emt 0:00:32]} Rd5 {[%emt 0:00:48]} 38. Qe6+ {[%emt 0:00:51]} (38. Qxb5 Rxf5 39. Rc1 Kh7) 38... Kh7 {[%emt 0:00:04][%cal Od4c3]} 39. Rxe4 $2 {[%emt 0:00:32]} ({Weaker is} 39. Qxe4 Qxe4 40. Rxe4 Rxf5 $18) (39. Ng3 $18 Qe3 40. Rg1 (40. Rxe3 $2 {gets mated.} Rd1+) 40... Rxc5 41. Nxe4) 39... Qxc5 $2 {[%emt 0:00:08] [#]} ({Black should try} 39... Qf2 $1 $11 40. h4 (40. Qxd5 $2 Qxf1#) (40. Re1 Re5 $11) 40... Qxf1+ 41. Kh2 Rxc5) 40. Re1 $1 $16 {[%emt 0:00:30]} Rxf5 {[%emt 0:00:29]} 41. Qe4 {[%emt 0:30:08]} Kg8 {[%emt 0:30:23]} 42. Qe3 $4 {[%emt 0:00:47][%mdl 8192] [#]} (42. Rd1 $18 Re5 43. Qb1) 42... Rxf1+ $1 {[%emt 0:00:13][%mdl 576] Remove Defender. A wild game.   Weighted Error Value: White=0.61/Black=0.58} 0-1

[Event "CZE-ch U16 Open 2023"]
[Site "Teplice"]
[Date "2023.03.11"]
[Round "1.11"]
[White "Hladky, Tadeas"]
[Black "Svoboda, Daniel"]
[Result "1/2-1/2"]
[ECO "B51"]
[WhiteElo "1973"]
[BlackElo "1748"]
[Annotator "TA"]
[PlyCount "59"]
[EventDate "2023.03.09"]
[EventType "swiss"]
[EventCountry "CZE"]
[SourceTitle "playchess.com"]
[Source "ChessBase"]
[SourceQuality "1"]
[TimeControl "40/5400+30:1800+30"]

{[%evp 14,59,10,9,2,8,0,0,0,0,0,0,0,0,0,0,0,0,0,-4,-1,-4,-7,-10,0,-11,9,9,10,32,18,0,0,-8,0,0,0,0,0,-8,0,0,0,-8,0,0,0,-16]} 1. e4 {[%emt 0:00:06]} c5 {[%emt 0:00:09]} 2. Nf3 {[%emt 0:00:07]} d6 {[%emt 0:00:22]} 3. Bb5+ {[%emt 0:00:07]} Nd7 {[%emt 0:00:42]} 4. d4 {[%emt 0:00:07]} cxd4 {[%emt 0:00:31]} 5. Qxd4 {[%emt 0:00:08]} a6 {[%emt 0:00:24]} 6. Bxd7+ {[%emt 0:00:08]} Bxd7 {[%emt 0:01:49]} 7. O-O {[%emt 0:00:10]} Nf6 {[%emt 0:00:39]} 8. Bg5 {[%emt 0:00:09]} e6 $1 {[%emt 0:01:05] 8...e6 is better than 8...h6. B51: Sicilian: Moscow Variation (3 Bb5+) without 3...Bd7.} 9. Nbd2 {[%emt 0:00:07]} Bc6 {[%emt 0:02:33]} 10. Nc4 {[%emt 0:00:16]} Bxe4 {[%emt 0:04:00]} 11. Bxf6 {[%emt 0:00:06]} Qxf6 {[%emt 0:00:45]} 12. Qxe4 {[%emt 0:00:06]} d5 {[%emt 0:00:19]} 13. Qe2 {[%emt 0:00:04] [#] Nb6 is the strong threat.} dxc4 {[%emt 0:01:10]} 14. Qxc4 {[%emt 0:00:06] Black must now prevent Qa4+.} Be7 {[%emt 0:03:53] [#]} 15. Rfd1 $146 {[%emt 0:00:32]} ({Predecessor:} 15. c3 O-O 16. Qe4 Rab8 17. Rfd1 Rfd8 18. Rxd8+ Bxd8 19. Rd1 Qe7 20. g3 Bc7 21. Kg2 {0-1 Bok,B (2596)-Vachier Lagrave,M (2796) Titled Tuesday intern op 7th Febr blitz 2017 (9)}) 15... O-O {[%emt 0:05:59]} 16. c3 {[%emt 0:00:17]} Rfd8 {[%emt 0:08:55]} 17. Qe4 {[%emt 0:03:01]} Bf8 {[%emt 0:11:27]} 18. h3 {[%emt 0:52:51]} h6 19. a4 Rxd1+ {[%emt 0:21:15]} 20. Rxd1 {[%emt 0:00:41]} Rd8 $1 21. Rxd8 {[%emt 0:05:23]} Qxd8 $11 {[%emt 0:00:18][%mdl 4096] Endgame KQB-KQN} 22. Qd4 {[%emt 0:08:46] Dodges Qd1+. The position is equal.} Qc7 {[%emt 0:15:41]} 23. Nd2 {[%emt 0:04:25]} b5 {[%emt 0:00:33]} 24. axb5 {[%emt 0:03:55]} axb5 {[%emt 0:08:58]} 25. Ne4 {[%emt 0:09:22]} Qf4 {[%emt 0:04:16]} 26. Nd2 {[%emt 0:01:41]} Qc7 {[%emt 0:00:24]} 27. Ne4 {[%emt 0:00:24]} Qf4 {[%emt 0:00:28]} 28. Nd2 {[%emt 0:00:15]} Qc7 {[%emt 0:00:32]} 29. Ne4 {[%emt 0:00:11]} Qf4 30. Nd2 {An uneventful encounter.   Weighted Error Value: White=0.03 (flawless) /Black=0.03 (flawless)} 1/2-1/2

[Event "CZE-ch U16 Open 2023"]
[Site "Teplice"]
[Date "2023.03.11"]
[Round "1.12"]
[White "Mrazek, Adam"]
[Black "Simunek, Jakub Simon"]
[Result "0-1"]
[ECO "D52"]
[WhiteElo "1745"]
[BlackElo "1970"]
[Annotator "TA"]
[PlyCount "70"]
[EventDate "2023.03.09"]
[EventType "swiss"]
[EventCountry "CZE"]
[SourceTitle "playchess.com"]
[Source "ChessBase"]
[SourceQuality "1"]
[TimeControl "40/5400+30:1800+30"]

{[%evp 14,70,-2,7,29,-24,-25,-63,-34,-63,-51,-38,-53,-52,-58,-64,-7,-10,-14,-30,10,-46,-22,-40,-39,-129,-47,-116,-118,-161,-184,-257,-259,-262,-261,-263,-159,-329,-331,-301,-300,-281,-275,-254,-268,-323,-302,-576,-586,-588,-538,-728,-585,-578,-570,-558,-558,-551,-551]} 1. Nf3 d5 2. c4 c6 3. d4 Nf6 4. Nc3 e6 5. Bg5 Nbd7 6. e3 Qa5 7. Qc2 Ne4 8. cxd5 Bb4 {[%cal Re4c3] D52: Queen's Gambit Declined: Cambridge Springs Variation.} 9. Rc1 (9. dxe6 $142 Nxc3 10. exd7+ Bxd7 11. Bh4 (11. bxc3 Bxc3+ 12. Kd1 Bxa1 $17)) 9... exd5 $11 {[#]} 10. Qb3 $146 ({Predecessor:} 10. a3 Bxc3+ 11. bxc3 Qxa3 12. Bh4 O-O 13. Bd3 Re8 14. O-O Nf8 15. Nd2 Bf5 16. Nb1 {0-1 Roubalik,J (2395)-Vovk,Y (2577) SVK-chT 1920 2019 (7.6)}) 10... O-O {Black is slightly better.} (10... c5 $5 {[%cal Rc5c4]} 11. a3 (11. Qxd5 $2 Bxc3+ 12. bxc3 Nxc3 $19) 11... Bxc3+ 12. bxc3 c4 $15) 11. Bf4 c5 12. a3 Bxc3+ 13. bxc3 c4 14. Qb4 Qa6 (14... Qd8 $15) 15. Be2 Re8 16. a4 Nb8 17. O-O ({White should try} 17. Ne5 $11) 17... Bd7 (17... Nc6 $5 {[%cal Rc6b4]} 18. Qb5 Qxb5 19. axb5 Na5 $11) 18. Bxb8 (18. Ne5 {keeps more tension.} Nc6 19. Nxc6 Qxc6 20. a5) 18... Raxb8 19. a5 (19. Bd1 $15) 19... Bg4 (19... b6 $17 20. Bd1 Qxa5) 20. Rfd1 ({Better is} 20. h3 $15 Bh5 21. Ra1) 20... b6 $17 {Black is more active.} 21. Ra1 bxa5 22. Qxa5 (22. Qa3 $142) 22... Qxa5 $19 23. Rxa5 Nxc3 24. Re1 {White is weak on the light squares} Rb2 25. Kf1 {This costs White the game.} (25. Bf1 $17 {was the only defense.}) 25... Reb8 {...Nxe2 would be deadly.} 26. h3 Bf5 27. Bxc4 dxc4 {[%cal Bd5c4,Bc4c3][%mdl 32]} 28. Rxf5 Ne4 {[#] Wards off Rc5. And now ...c3 would win.} 29. Ne5 c3 ({Inferior is} 29... Nd6 30. Rf3 $17) 30. Nd3 $2 (30. Rxf7 $2 {perishes.} Nd2+ 31. Ke2 (31. Kg1 $2 c2 $19) 31... Nc4+ 32. Kf1 Nxe5 $19) (30. g3 {keeps fighting.}) 30... Rd2 {Black is clearly winning.} 31. Nc1 Rbb2 32. Kg1 Nxf2 33. Rc5 {[%cal Rc5c8]} g6 {Threatens to win with ...Ne4.} 34. Rxc3 Ne4 $1 {[%csl LRc3,LRg2][%mdl 64] [#] Discovered Attack} 35. Rc8+ Kg7 {Weighted Error Value: White=0.56/Black=0.25 (precise)} 0-1

[Event "CZE-ch U16 Open 2023"]
[Site "Teplice"]
[Date "2023.03.12"]
[Round "2.1"]
[White "Kubin, Tomas Daniel"]
[Black "Janous, Marek"]
[Result "0-1"]
[ECO "B69"]
[WhiteElo "1936"]
[BlackElo "2124"]
[Annotator "TA"]
[PlyCount "60"]
[EventDate "2023.03.09"]
[EventType "swiss"]
[EventCountry "CZE"]
[SourceTitle "playchess.com"]
[Source "ChessBase"]
[SourceQuality "1"]
[TimeControl "40/5400+30:1800+30"]

{[%evp 25,60,40,27,32,81,50,46,43,39,41,36,37,39,0,0,0,41,52,54,0,12,0,43,43,36,-159,-164,-478,-482,-470,-465,-1795,-1764,-29997,-29998,-29998,-29999]} 1. e4 {[%emt 0:00:04]} c5 {[%emt 0:00:59]} 2. Nf3 {[%emt 0:00:08]} d6 {[%emt 0:00:07]} 3. d4 {[%emt 0:00:08]} cxd4 {[%emt 0:00:08]} 4. Nxd4 {[%emt 0:00:10]} Nf6 {[%emt 0:00:06]} 5. Nc3 {[%emt 0:00:13]} Nc6 {[%emt 0:00:05]} 6. Bg5 {[%emt 0:00:43]} e6 {[%emt 0:00:11]} 7. Qd2 {[%emt 0:00:20]} a6 {[%emt 0:00:15]} 8. O-O-O {[%emt 0:01:10]} Bd7 {[%emt 0:00:06]} 9. f4 {[%emt 0:00:29]} Be7 {[%emt 0:00:07]} 10. Nf3 {[%emt 0:01:17]} b5 {[%emt 0:00:11]} 11. Bxf6 {[%emt 0:00:25]} gxf6 {[%emt 0:00:08]} 12. Kb1 {[%emt 0:00:43]} Qb6 {[%emt 0:01:26]} 13. f5 {[%emt 0:05:04]} O-O-O {[%emt 0:01:44][%cal Be8c8,Bc8b8,Bb8b7][%mdl 32]} 14. g3 {[%emt 0:03:21] B69: Sicilian: Richter-Rauzer: 7...a6 8 0-0-0 Bd7 9 f4 Be7 10 Nf3 b5 11 Bxf6.} b4 {[%emt 0:15:47]} (14... Rhe8 $14) 15. fxe6 {[%emt 0:18:58]} fxe6 {[%emt 0:00:49]} 16. Na4 {[%emt 0:00:55] White is slightly better.} Qa5 {[%emt 0:02:35]} 17. b3 {[%emt 0:00:16] [#]} Kb8 $146 {[%emt 0:24:15]} ({Predecessor:} 17... Kb7 18. Nb2 Be8 19. Bc4 Bh5 20. Qe3 Qc5 21. Qxc5 dxc5 22. Rdf1 Bg4 23. h3 Bxf3 24. Rxf3 Ne5 25. Rf2 {½-½ Bensiek,N-Karkuth,S GER-ch23 sf9 corr 1991}) 18. Qe2 {[%emt 0:16:28]} Kb7 {[%emt 0:02:50]} 19. Bg2 {[%emt 0:02:05]} Na7 {[%emt 0:27:49][%cal Bc6a7,Ba7b5,Bb5a3][%mdl 32]} 20. Nd4 {[%emt 0:18:25]} e5 {[%emt 0:01:40]} 21. Nf5 {[%emt 0:00:42]} Bf8 {[%emt 0:04:38]} 22. Qc4 {[%emt 0:10:57]} (22. Nxd6+ $2 {too greedy.} Bxd6 23. Rxd6 Bxa4 24. Rxd8 Rxd8 $19) 22... Nb5 $1 {[%emt 0:01:14]} 23. Qf7 {[%emt 0:05:47]} Qc7 {[%emt 0:00:48]} 24. Ne3 {[%emt 0:02:25] [#] Hoping for Nd5.} (24. Qxf6 $2 {loses.} Na3+ 25. Ka1 Bxa4 $19) 24... Na3+ {[%emt 0:08:21]} 25. Kb2 $2 {[%emt 0:00:48]} (25. Ka1 $14 {is the one way to stay ahead.} Bxa4 26. Qxc7+ (26. Qxf6 $2 Qc3#) 26... Kxc7 27. bxa4) 25... Bh6 $17 {[%emt 0:01:49] Chess con chili.} 26. Nc4 {[%emt 0:01:35]} (26. Nf5 {nothing else works.} Qxc2+ 27. Ka1) 26... Nxc4+ $19 {[%emt 0:00:08]} 27. bxc4 {[%emt 0:02:07]} Bxa4 {[%emt 0:00:14][%mdl 64] [#] Discovered Attack. A strong pair of Bishops.} 28. Qxf6 {[%emt 0:00:32]} (28. Qd5+ $142 Bc6 29. Qd3) 28... Qxc4 {[%emt 0:00:41] ( -> ...Qc3+)} 29. Qxh6 {[%emt 0:01:20]} Qc3+ {[%emt 0:00:11]} 30. Kb1 {[%emt 0:00:20]} Bxc2+ {[%emt 0:00:04] Excellently played by Janous!   Weighted Error Value: White=1.09/Black=0.11 (very precise)} 0-1

[Event "CZE-ch U16 Open 2023"]
[Site "Teplice"]
[Date "2023.03.12"]
[Round "2.2"]
[White "Paseka, Matyas"]
[Black "Slaby, Matej"]
[Result "1-0"]
[ECO "B17"]
[WhiteElo "2082"]
[BlackElo "1932"]
[Annotator "TA"]
[PlyCount "61"]
[EventDate "2023.03.09"]
[EventType "swiss"]
[EventCountry "CZE"]
[SourceTitle "playchess.com"]
[Source "ChessBase"]
[SourceQuality "1"]
[TimeControl "40/5400+30:1800+30"]

{[%evp 12,61,13,10,69,72,91,58,115,107,111,106,93,124,118,82,82,70,103,76,77,80,83,79,132,149,181,182,197,135,220,119,417,416,452,445,527,413,406,276,274,253,402,399,373,381,633,627,1194,1181,29985,2593]} 1. e4 {[%emt 0:00:05]} c6 {[%emt 0:00:11]} 2. d4 {[%emt 0:00:09]} d5 {[%emt 0:00:05]} 3. Nd2 {[%emt 0:00:08]} dxe4 {[%emt 0:00:07]} 4. Nxe4 {[%emt 0:00:06]} Nd7 {[%emt 0:00:06]} 5. Ng5 {[%emt 0:01:06]} Ngf6 {[%emt 0:00:37]} 6. Bd3 {[%emt 0:00:22]} e6 {[%emt 0:00:28]} 7. Qe2 {[%emt 0:00:14]} Nb6 {[%emt 0:02:55] B17: Caro-Kann: Modern Line (4...Nd7).} (7... Bd6 $11) 8. N1f3 $14 {[%emt 0:03:37]} Be7 {[%emt 0:04:34]} 9. Bd2 {[%emt 0:09:37][%cal Bc1d2,Bd2c3,Bc3e5][%mdl 32]} O-O {[%emt 0:01:32]} (9... h6 $14) 10. h4 $16 {[%emt 0:04:19][%cal Og5h7]} h6 {[%emt 0:03:18] [#]} 11. O-O-O $1 {[%emt 0:02:33] [#]} c5 $146 {[%emt 0:04:14]} (11... hxg5 $2 12. hxg5 g6 13. gxf6 Bxf6 14. Qe3 $18) (11... Na4 12. Ne4) ({Predecessor:} 11... Nbd5 12. Ne4 a5 13. Ne5 Nb4 14. Nxf6+ Bxf6 15. Bc4 Bd7 16. c3 Nd5 17. Qe4 Be7 {1-0 Christensen,A (1758)-Schilly,H (1804) Berlin Lichtenberger op 15th 2016 (5)}) 12. dxc5 $1 {[%emt 0:03:58]} Bxc5 {[%emt 0:00:21]} 13. c4 {[%emt 0:34:15][%cal Od2c3]} Qe7 {[%emt 0:06:31] [#]} (13... hxg5 $2 14. hxg5 Bd4 15. gxf6 $18) 14. Bc3 $1 {[%emt 0:00:43]} Nbd7 {[%emt 0:02:23] [#]} (14... hxg5 15. hxg5 Ng4 16. Bh7+ Kh8 17. Qe4 $18) (14... Ng4 15. Ne4) 15. Ne5 $1 {[%emt 0:10:40]} Nxe5 {[%emt 0:14:12]} (15... hxg5 $2 16. hxg5 $18) 16. Bxe5 {[%emt 0:00:12][%cal Od3c2]} Nd7 {[%emt 0:00:17]} (16... hxg5 $2 17. hxg5 $18) 17. Bc3 {[%emt 0:05:06][%cal Od3c2] White has more active pieces. The black rooks are badly placed.} (17. Qe4 $2 f5 $19) 17... Re8 {[%emt 0:10:28]} (17... hxg5 18. Bh7+ Kxh7 19. hxg5+ Kg8 20. Qh5 $18) (17... Nf6 $142) 18. Ne4 {[%emt 0:05:48] aiming for g4.} (18. Qe4 f5 19. Qxe6+ Qxe6 $17) 18... Bb4 {[%emt 0:03:22]} 19. Bxb4 {[%emt 0:02:53]} Qxb4 {[%emt 0:00:09] [#]} 20. Nd6 {[%emt 0:00:47]} Re7 {[%emt 0:04:57] [#]} (20... Qxd6 $2 21. Bh7+ Kxh7 22. Rxd6 $18) (20... Rd8 $16) 21. Rh3 {[%emt 0:02:11]} Nc5 $2 {[%emt 0:11:52][%mdl 8192] [#] This costs Black the game.} (21... Qxd6 $2 22. Bh7+ Kxh7 23. Rxd6 $18) (21... Nf6 $16 {was necessary.}) 22. Bc2 $1 $18 {[%emt 0:01:10] And now Rg3 would win.} Bd7 {[%emt 0:03:18]} 23. Rg3 {[%emt 0:01:38][%cal Bh3g3,Bg3f3,Bf3f7][%mdl 32]} e5 {[%emt 0:06:53]} 24. Qh5 {[%emt 0:04:04]} Kf8 {[%emt 0:00:36]} 25. Rf3 {[%emt 0:00:08][%cal Rf3f7]} Be6 {[%emt 0:01:41]} 26. Qg6 $40 {[%emt 0:02:05][%mdl 128] Threatens to win with Qh7. Black is in trouble.} (26. Qxe5 Bg4 $15) 26... Rd7 {[%emt 0:07:39]} (26... Qb6 $142 27. Qh7 Rd7) 27. a3 {[%emt 0:01:32]} Qb6 {[%emt 0:00:07] White must now prevent ...Rad8.} 28. b4 $1 {[%emt 0:00:10]} Rxd6 $2 {[%emt 0:00:56]} (28... Qc6) 29. Rxd6 {[%emt 0:00:08]} ({Stronger than} 29. bxc5 Rxd1+ 30. Kxd1 Qb2 $17) 29... Qxd6 {[%emt 0:00:31] [#]} 30. Rxf7+ $3 {[%emt 0:00:04][%mdl 576] Pin, Double Attack} Ke8 {[%emt 0:00:43]} (30... Bxf7 31. Qxd6+) 31. bxc5 {Magnificent play by Paseka!   Weighted Error Value: White=0.28 (precise) /Black=0.90} (31. Rxg7+ $142 Kd8 32. Qf6+ Kc8 33. bxc5 Qd7 34. Rxd7 Bxd7 35. Qh8+ Kc7 36. Qxa8) 1-0

[Event "CZE-ch U16 Open 2023"]
[Site "Teplice"]
[Date "2023.03.12"]
[Round "2.3"]
[White "Lang, Simon"]
[Black "Fizer, Marek"]
[Result "0-1"]
[ECO "B99"]
[WhiteElo "1974"]
[BlackElo "1929"]
[Annotator "TA"]
[PlyCount "72"]
[EventDate "2023.03.09"]
[EventType "swiss"]
[EventCountry "CZE"]
[SourceTitle "playchess.com"]
[Source "ChessBase"]
[SourceQuality "1"]
[TimeControl "40/5400+30:1800+30"]

{[%evp 18,72,25,8,42,42,38,0,0,0,0,0,0,0,0,0,58,45,114,20,37,26,39,0,0,0,0,0,0,-72,-69,-58,-38,-69,-68,-68,-68,-68,-68,-68,-69,-70,-50,-64,-55,-47,-50,-164,-162,-236,-243,-316,-287,-5952,-5841,-5193,-3098]} 1. e4 {[%emt 0:00:37]} c5 {[%emt 0:00:24]} 2. Nc3 {[%emt 0:00:59]} d6 {[%emt 0:01:10]} 3. Nf3 {[%emt 0:01:43]} Nf6 {[%emt 0:00:30]} 4. d4 {[%emt 0:01:07]} cxd4 {[%emt 0:00:10]} 5. Nxd4 {[%emt 0:01:32]} a6 {[%emt 0:00:15]} 6. Bg5 {[%emt 0:01:43]} e6 {[%emt 0:00:55]} 7. f4 {[%emt 0:02:50]} Be7 {[%emt 0:02:17]} 8. Qf3 {[%emt 0:01:48]} Qc7 {[%emt 0:00:40]} 9. O-O-O {[%emt 0:02:03]} Nbd7 {[%emt 0:01:19]} 10. g4 $1 {[%emt 0:02:33]} h6 {[%emt 0:01:38] Repels h4. B99: Sicilian Najdorf: 6 Bg5 e6 7 f4 Be7 8 Qf3 Qc7 9 0-0-0 Nbd7.} 11. Bxf6 {[%emt 0:10:49]} Bxf6 {[%emt 0:00:26]} 12. Be2 {[%emt 0:06:07]} g5 {[%emt 0:00:14] [#] The position is equal.} 13. f5 $146 {[%emt 0:04:22]} ({Predecessor:} 13. h4 gxf4 14. g5 Be5 15. g6 Nf6 16. gxf7+ Qxf7 17. Bc4 Qe7 18. Nce2 Bxd4 19. Nxf4 {0-1 Leon Nanjari,R (2199)-Dumas Aviles,A (2231) Santiago Endesa 05 2008 (4)}) 13... Ne5 {[%emt 0:03:01]} 14. Qh3 {[%emt 0:06:49]} Nc6 {[%emt 0:06:22]} 15. Nxc6 {[%emt 0:21:13]} bxc6 {[%emt 0:15:20]} 16. Bc4 {[%emt 0:05:15]} Ke7 {[%emt 0:06:27] Black is weak on the light squares} (16... Rb8 $11) 17. Rhf1 {[%emt 0:10:00]} Bd7 {[%emt 0:04:16]} ({Black should try} 17... Rb8 $14) 18. Rd3 {[%emt 0:05:17]} (18. fxe6 $16 fxe6 19. Rxf6 Kxf6 20. e5+ dxe5 21. Ne4+ Kg7 22. Qe3) 18... Be5 $11 {[%emt 0:06:11]} 19. Kb1 {[%emt 0:04:57]} Rab8 {[%emt 0:10:41]} 20. fxe6 {[%emt 0:02:32]} (20. Bxa6 $2 Qb6 21. Nd1 Qxa6 $19) (20. Qf3 $5 {[%cal Rf5e6]}) 20... fxe6 {[%emt 0:00:36]} 21. Rdf3 {[%emt 0:01:11]} (21. Bxa6 $2 {loses.} Qb6 $19) 21... Be8 {[%emt 0:01:13] Repels Rf7+} 22. Qg2 {[%emt 0:01:33]} Qb6 {[%emt 0:01:02][%csl Gb8][%cal Rb6b2] [#]} 23. Nd1 {[%emt 0:01:37]} (23. Bb3 $1 $11) 23... Bg6 $17 {[%emt 0:09:04] This pair of bishops is nice.} (23... Bxb2 $2 24. Rb3 Bd4 25. Rxb6 $18) 24. Qe2 {[%emt 0:01:14]} Qd4 {[%emt 0:00:57][%cal Rb8b2] ( -> ...Rxb2+). Some like it hot} (24... Bxb2 $2 25. Rb3 (25. Bxa6 $2 {too greedy.} Bc3+ $19) 25... Qa7 26. Nxb2 $18) 25. Bb3 {[%emt 0:01:22]} Rhf8 {[%emt 0:01:34] Active counter play!} ({Of course not} 25... Qxe4 26. Rf7+ Kd8 27. Qxe4 Bxe4 28. Bxe6 $11) 26. Rxf8 {[%emt 0:00:57]} Rxf8 {[%emt 0:00:10]} 27. Rxf8 {[%emt 0:00:07]} Kxf8 {[%emt 0:00:05]} 28. Bxe6 {[%emt 0:00:15]} Qxe4 $40 {[%emt 0:01:34][%mdl 128] Black attacks.} 29. Bc4 {[%emt 0:01:40]} Qxe2 {[%emt 0:02:07]} (29... a5 {is more complex.} 30. h3 Bf4 31. Nf2 Qg2) 30. Bxe2 {[%emt 0:00:02]} Bxh2 {[%emt 0:00:11]} 31. Bxa6 $15 {[%emt 0:00:08][%mdl 4096] Endgame KBB-KBN} h5 {[%emt 0:11:20][%cal Bh6h5,Bh5h4,Bh4h3][%mdl 32]} 32. Be2 {[%emt 0:01:32]} (32. gxh5 $15 Bxh5 33. Nf2) 32... h4 $19 {[%emt 0:00:08] [#] aiming for ...Be4.} 33. Bf3 {[%emt 0:00:16] Prevents Be4.} (33. Nf2 $142) 33... d5 {[%emt 0:00:44] ...Be4 is the strong threat.} 34. Nf2 {[%emt 0:00:35] Inhibits Be4.} Bg1 {[%emt 0:02:10]} 35. Nd3 {[%emt 0:00:41]} (35. Nh3 Be3 36. b4) 35... Be4 {[%emt 0:00:28]} 36. Ne5 {[%emt 0:00:30]} h3 {[%emt 0:00:31] Excellently played by Fizer!   Weighted Error Value: White=0.40/Black=0.13 (very precise)} 0-1